bitfinex-derivatives/quotes_ETHF0:USTF0_20250620
["timestamp","ask_amount","ask_price","bid_price","bid_amount"]
[1750443178398,3.2078,2423.3,2423.0,0.82534]
[1750443178608,0.82532,2423.1,2423.0,0.82534]
[1750443178806,38.81931,2423.2,2423.1,0.82532]
[1750443179002,37.994,2423.2,2423.1,0.82532]
[1750443179208,4.03308,2423.3,2423.2,0.82529]
[1750443179409,42.02208,2423.3,2423.2,0.82529]
[1750443179611,0.1889,2423.5,2423.4,0.82522]
[1750443179907,12.84427233,2423.5,2423.0,0.82535]
[1750443180104,0.82537,2423.0,2422.9,0.82537]
[1750443180804,8.514,2423.0,2422.5,1.4808]
[1750443180998,8.514,2423.0,2422.1,2.8242]
[1750443180999,3.2078,2422.7,2422.1,2.8242]
[1750443181205,8.514,2422.6,2422.4,0.82553]
[1750443181507,2.06293,2423.6,2422.5,15.86317233]
[1750443181809,18.11507233,2423.5,2422.8,3.2078]
[1750443182108,8.514,2423.4,2423.3,0.82525]
[1750443182305,0.1889,2423.5,2423.4,0.82522]
[1750443182609,0.82525,2423.3,2423.2,2.8242]
[1750443182798,0.82529,2423.2,2423.1,0.82531]
[1750443183007,0.82529,2423.2,2423.0,1.4871]
[1750443183008,3.2078,2423.3,2422.8,3.2078]
[1750443183302,0.82537,2423.0,2422.9,0.82537]
[1750443183509,0.82534,2423.1,2423.0,0.82536]
[1750443183712,37.975,2423.1,2423.0,0.82536]
[1750443183910,3.2078,2423.3,2423.2,0.82529]
[1750443184111,8.515,2423.4,2423.1,3.2078]
[1750443184310,0.1889,2423.5,2423.4,0.82522]
[1750443185106,0.82522,2423.4,2423.3,1.3959]
[1750443185619,0.82522,2423.4,2423.3,2.22115]
[1750443186213,0.82535,2423.1,2422.8,3.2078]
[1750443186413,0.82531,2423.2,2423.1,0.8253]
[1750443186919,0.82536,2423.0,2422.9,1.4837]
[1750443187113,0.82536,2423.0,2422.9,0.82539]
[1750443187419,0.82535,2423.1,2423.0,0.82534]
[1750443187608,0.82538,2423.0,2422.9,0.82538]
[1750443187812,0.82538,2423.0,2422.9,0.82537]
[1750443188220,9.25135,2423.1,2423.0,0.82536]
[1750443188517,8.426,2423.1,2423.0,0.82536]
[1750443188719,8.426,2423.1,2422.8,3.2078]
[1750443188921,0.82542,2422.8,2422.7,1.3976]
[1750443189121,0.82549,2422.6,2422.5,4.0333]
[1750443189315,0.82549,2422.7,2422.6,0.82548]
[1750443189517,0.82542,2422.9,2422.8,0.82541]
[1750443189715,0.82547,2422.7,2422.6,0.82546]
[1750443189919,0.82545,2422.8,2422.7,0.82544]
[1750443190417,0.8254,2422.9,2422.8,0.8254]
[1750443190612,0.8254,2422.9,2422.6,2.06372]
[1750443190613,8.427,2422.9,2422.6,2.06372]
[1750443190819,8.427,2423.1,2423.0,0.82534]
[1750443191014,9.25232,2423.1,2423.0,0.82534]
[1750443191616,8.427,2423.1,2423.0,0.82534]
[1750443192224,9.25232,2423.1,2423.0,0.82534]
[1750443192912,4.22192,2423.5,2423.4,0.82522]
[1750443193215,0.1889,2423.5,2423.4,4.03302]
[1750443193421,50.49037233,2424.0,2423.3,2.9826]
[1750443193616,12.65537233,2423.4,2423.1,3.2078]
[1750443193917,0.82538,2423.0,2422.9,0.82538]
[1750443194722,0.82539,2422.9,2422.8,2.3087]
[1750443194924,0.82538,2423.0,2422.9,0.82537]
[1750443195424,0.82539,2422.9,2422.8,2.3087]
[1750443196028,0.82538,2423.0,2422.9,0.82537]
[1750443196425,0.82534,2423.1,2423.0,0.82533]
[1750443196621,1.10239098,2423.2,2422.8,6.75465]
[1750443196824,0.82535,2423.1,2423.0,0.82536]
[1750443197223,8.427,2423.2,2423.1,0.82532]
[1750443197427,8.427,2423.4,2422.9,2.06347]
[1750443197723,1.93040374,2423.3,2423.2,0.82525]
[1750443198125,1.10513374,2423.3,2423.2,0.82525]
[1750443201129,0.82532,2423.2,2423.1,0.82529]
[1750443201337,0.82532,2423.1,2423.0,0.82533]
[1750443201530,0.82538,2423.0,2422.9,0.82536]
[1750443201827,1.10513374,2423.0,2422.9,0.82536]
[1750443202219,0.82523,2423.4,2423.3,0.82525]
[1750443202423,11.96951,2423.7,2423.2,0.82526]
[1750443202424,0.82525,2423.3,2423.2,0.82526]
[1750443202724,0.82525,2423.4,2423.3,0.82522]
[1750443203423,0.82533,2423.2,2423.1,0.8253]
[1750443204031,0.82533,2423.2,2422.8,0.8254]
[1750443204032,0.82539,2422.9,2422.8,0.8254]
[1750443204237,0.82545,2422.8,2422.7,0.82543]
[1750443204531,0.82542,2422.9,2422.8,0.8254]
[1750443204727,0.82542,2422.9,2422.8,4.0332]
[1750443204921,8.2078,2422.9,2422.2,3.2078]
[1750443205128,8.2078,2422.9,2421.7,4.02704938]
[1750443205129,11.15381761,2422.4,2421.9,3.2078]
[1750443205325,0.82561,2422.3,2422.2,0.82561]
[1750443205731,0.82561,2422.3,2421.9,4.6785]
[1750443205732,0.82555,2422.5,2422.4,0.82555]
[1750443205929,0.82558,2422.4,2422.3,0.82558]
[1750443206123,2.9175,2422.8,2422.3,2.064]
[1750443206335,3.2078,2422.9,2422.8,0.82542]
[1750443206627,1.4409,2423.1,2422.9,0.82538]
[1750443206628,0.82537,2423.0,2422.9,0.82538]
[1750443206834,0.8254,2422.9,2422.8,0.8254]
[1750443207628,3.2078,2423.6,2422.8,10.27132]
[1750443207831,21.64478761,2423.5,2422.8,3.2078]
[1750443208031,0.82531,2423.2,2422.8,5.27132]
[1750443208229,0.82531,2423.2,2423.1,0.82531]
[1750443209238,1.3937,2423.4,2422.8,6.66782]
[1750443209239,0.82538,2423.0,2422.9,0.82537]
[1750443209532,0.82539,2422.9,2422.8,4.03322]
[1750443209732,0.82538,2423.0,2422.9,0.82537]
[1750443209923,0.82539,2422.9,2422.5,1.3965]
[1750443210131,0.82539,2422.9,2422.8,0.82542]
[1750443210530,0.82544,2422.8,2422.7,0.82543]
[1750443211029,0.82541,2422.9,2422.8,0.82541]
[1750443211428,1.3712,2423.2,2422.7,3.2078]
[1750443211723,0.8253,2423.2,2423.1,0.82532]
[1750443212234,2.22738,2423.3,2423.2,0.82529]
[1750443212636,0.82522,2423.4,2423.3,0.82525]
[1750443212929,10.7404,2423.5,2423.4,0.82522]
[1750443213128,32.98335,2423.7,2423.6,0.82515]
[1750443213335,0.82511,2423.8,2423.7,0.8251]
[1750443213631,8.428,2423.9,2423.8,0.82508]
[1750443213828,8.428,2423.9,2423.6,3.2078]
[1750443214028,1.4058,2423.9,2423.8,0.82508]
[1750443214225,8.428,2424.3,2423.6,3.2078]
[1750443214431,11.15381761,2423.8,2423.3,3.2078]
[1750443214632,0.82515,2423.7,2423.6,0.82515]
[1750443214828,0.82513,2423.7,2423.6,0.82513]
[1750443215028,0.82517,2423.6,2423.5,0.82517]
[1750443215931,44.38925,2423.9,2423.7,0.82509]
[1750443215932,0.82509,2423.8,2423.7,0.82509]
[1750443216130,1.91948141,2423.8,2423.7,0.82509]
[1750443216431,1.09439141,2423.8,2423.7,0.82512]
[1750443216634,10.57286,2423.9,2423.8,0.82508]
[1750443216837,10.26114261,2423.9,2423.8,0.82508]
[1750443217236,9.43608261,2423.9,2423.8,0.82508]
[1750443217836,9.16705,2423.9,2423.8,0.82508]
[1750443218332,0.82503,2424.0,2423.9,0.82505]
[1750443218528,1.09383185,2424.1,2424.0,0.82501]
[1750443218732,0.82505,2423.9,2423.8,4.03287]
[1750443219536,2.22555,2423.9,2423.8,4.03287]
[1750443219929,1.4005,2423.9,2423.6,1.4897]
[1750443220132,0.82522,2423.4,2423.3,0.82523]
[1750443220438,11.97897761,2423.7,2423.6,0.82515]
[1750443220631,0.82517,2423.6,2423.5,0.82515]
[1750443221437,1.4767,2423.8,2423.4,2.06303]
[1750443221640,0.8251,2423.8,2423.7,0.82508]
[1750443221838,0.82507,2423.9,2423.8,0.82508]
[1750443222439,0.82504,2424.0,2423.9,0.82503]
[1750443222641,5.64384487,2424.9,2423.9,11.5498]
[1750443222838,0.82476,2424.8,2424.7,0.82473]
[1750443223241,0.82488,2424.4,2424.3,0.82488]
[1750443223542,0.82487,2424.5,2424.4,0.82486]
[1750443223738,1.4146,2424.7,2424.0,4.6008]
[1750443224043,0.82491,2424.3,2424.2,0.82493]
[1750443224234,5.2699,2424.6,2424.2,0.82493]
[1750443224435,0.82489,2424.4,2424.3,0.82491]
[1750443225344,0.82489,2424.4,2424.0,6.66333]
[1750443225345,5.26984,2424.6,2424.0,4.6008]
[1750443225544,0.82492,2424.3,2424.2,0.82491]
[1750443226242,0.82488,2424.5,2424.4,0.82486]
[1750443226438,0.82492,2424.4,2424.3,0.82489]
[1750443229046,0.82488,2424.5,2424.4,0.82485]
[1750443229338,0.82498,2424.1,2424.0,2.21797]
[1750443229541,0.82498,2424.1,2424.0,0.82497]
[1750443231033,0.82497,2424.2,2424.1,0.82495]
[1750443231345,0.82502,2424.1,2424.0,0.82499]
[1750443233143,0.82497,2424.2,2424.1,0.82495]
[1750443233640,3.2078,2424.3,2424.1,5.82495]
[1750443233942,0.82468,2425.0,2424.5,2.06212]
[1750443234142,0.82468,2425.0,2424.8,0.82473]
[1750443234342,0.82467,2425.1,2424.9,0.82471]
[1750443234545,2.21807,2425.1,2424.9,0.82471]
[1750443234939,1.3934,2425.1,2425.0,0.82467]
[1750443235438,1.4092,2425.2,2424.8,3.2078]
[1750443235439,1.4092,2425.2,2425.1,0.82464]
[1750443235745,1.3934,2425.5,2424.8,3.2078]
[1750443235932,0.82463,2425.2,2425.1,0.82464]
[1750443236132,0.82463,2425.2,2424.8,3.2078]
[1750443236133,1.3934,2425.3,2425.0,0.82467]
[1750443236341,0.82463,2425.2,2425.1,0.82464]
[1750443237541,2.80853,2425.2,2425.1,0.82464]
[1750443238045,1.9839,2425.2,2425.1,0.82464]
[1750443238347,1.9839,2425.2,2425.1,4.03244]
[1750443239845,2.80851,2425.2,2425.1,4.03244]
[1750443240145,3.444,2425.2,2425.1,4.03244]
[1750443240345,1.9839,2425.2,2425.1,4.03244]
[1750443240743,2.80851,2425.2,2425.1,4.03244]
[1750443241440,1.9839,2425.2,2425.1,9.03244]
[1750443241637,1.3908,2425.8,2425.7,0.82444]
[1750443241845,1.4498,2426.1,2426.0,0.82433]
[1750443242651,10.51095,2426.3,2426.2,0.82427]
[1750443242945,1.4116,2426.4,2426.3,0.82423]
[1750443243150,1.4116,2426.4,2426.2,3.2078]
[1750443243349,2.06071,2426.2,2425.9,3.2078]
[1750443243546,0.82433,2426.0,2425.9,3.2078]
[1750443243937,0.82433,2426.0,2425.9,4.03217]
[1750443244143,0.82432,2426.1,2426.0,0.8243]
[1750443244642,0.82428,2426.3,2426.2,0.82425]
[1750443244948,2.8619,2426.5,2426.4,0.8242]
[1750443245245,0.82423,2426.3,2426.2,3.2078]
[1750443246151,0.82439,2425.9,2425.8,0.82438]
[1750443246344,0.82439,2425.9,2425.8,4.03218]
[1750443246953,0.82439,2425.9,2425.8,3.2078]
[1750443247549,0.82439,2425.9,2425.8,4.0322]
[1750443247950,0.82439,2425.9,2425.8,3.2078]
[1750443248154,0.82439,2425.9,2425.8,4.0322]
[1750443248344,0.82437,2425.9,2425.8,4.0322]
[1750443249349,0.82436,2426.0,2425.9,0.82433]
[1750443249655,0.82432,2426.1,2426.0,0.8243]
[1750443249849,0.82428,2426.2,2426.1,0.82426]
[1750443250154,0.82428,2426.2,2426.1,4.03206]
[1750443250947,0.82421,2426.5,2426.4,0.8242]
[1750443251153,1.19729717,2426.6,2426.5,0.82416]
[1750443251355,1.19729717,2426.6,2426.5,4.03196]
[1750443251549,0.82416,2426.6,2426.5,4.03196]
[1750443251945,0.82423,2426.4,2426.2,1.4561]
[1750443252144,0.82423,2426.4,2426.3,0.82421]
[1750443252350,0.82419,2426.5,2426.4,0.82416]
[1750443254249,0.82419,2426.5,2426.4,4.03196]
[1750443254651,0.82427,2426.3,2426.2,0.82425]
[1750443255854,2.06059,2426.3,2425.8,4.6045]
[1750443256052,0.82437,2426.0,2425.9,0.82436]
[1750443257357,0.82432,2426.1,2426.0,0.8243]
[1750443261152,0.82437,2425.9,2425.8,3.2078]
[1750443261350,0.82437,2425.9,2425.1,3.2078]
[1750443261351,0.8246,2425.2,2425.1,3.2078]
[1750443261858,21.43382799,2425.7,2425.4,0.82452]
[1750443262051,3.2078,2426.1,2425.8,0.82437]
[1750443262256,3.2078,2426.1,2426.0,0.82431]
[1750443262257,0.82431,2426.1,2426.0,0.82431]
[1750443265057,0.82425,2426.3,2426.2,0.82423]
[1750443265262,0.82425,2426.3,2426.2,4.03203]
[1750443266159,9.07418,2426.5,2426.4,0.8242]
[1750443266361,0.82417,2426.5,2426.4,0.8242]
[1750443266958,0.82409,2426.8,2426.7,0.82407]
[1750443267259,0.82409,2426.8,2426.7,3.2078]
[1750443267458,0.82416,2426.6,2426.3,4.6054]
[1750443267659,0.82418,2426.5,2426.4,0.82417]
[1750443267958,0.8242,2426.4,2426.3,5.42961]
[1750443268563,0.82415,2426.7,2426.6,0.82411]
[1750443268863,0.82417,2426.6,2426.5,0.82415]
[1750443270565,0.8242,2426.4,2426.3,5.42961]
[1750443270862,0.82416,2426.6,2426.5,0.82414]
[1750443271263,0.82414,2426.7,2426.6,0.82412]
[1750443271865,11.1233,2427.1,2426.6,3.2078]
[1750443272171,0.82407,2426.9,2426.8,0.82405]
[1750443272358,1.90744618,2426.9,2426.8,0.82405]
[1750443272659,0.82407,2426.9,2426.8,0.82405]
[1750443272965,0.8241,2426.8,2426.7,0.82408]
[1750443273962,0.82407,2426.9,2426.8,0.82403]
[1750443275761,2.06003,2427.0,2426.6,3.2078]
[1750443275962,0.8241,2426.7,2426.6,3.2078]
[1750443277766,0.82417,2426.5,2426.4,0.8242]
[1750443278060,0.8242,2426.4,2426.3,5.42961]
[1750443278563,0.8242,2426.5,2426.4,0.82417]
[1750443278762,0.82416,2426.6,2426.5,0.82411]
[1750443279768,0.8242,2426.4,2426.3,5.42959]
[1750443280070,0.8242,2426.4,2426.3,4.03199]
[1750443280762,0.8242,2426.4,2426.3,3.2078]
[1750443281265,0.8242,2426.4,2426.3,4.03204]
[1750443281767,0.82415,2426.7,2426.6,0.82411]
[1750443282067,0.82406,2426.9,2426.7,0.82407]
[1750443282366,0.82406,2426.9,2426.8,0.82407]
[1750443282862,0.82404,2426.9,2426.8,0.82405]
[1750443283058,0.82404,2426.9,2426.6,3.2078]
[1750443283261,2.06001,2427.0,2426.6,3.2078]
[1750443283567,0.8241,2426.8,2426.7,0.8241]
[1750443284363,0.8241,2426.7,2426.6,3.2078]
[1750443284667,3.6852,2426.7,2426.6,3.2078]
[1750443285464,3.6852,2426.7,2426.6,4.03194]
[1750443285961,3.6852,2426.7,2426.6,3.2078]
[1750443286161,3.6852,2426.7,2426.6,4.03194]
[1750443286362,0.82403,2427.0,2426.9,0.824]
[1750443286562,0.82403,2427.0,2426.9,4.0318]
[1750443288772,0.82396,2427.2,2427.1,0.82397]
[1750443289272,2.32516,2427.2,2427.1,0.82397]
[1750443289569,0.824,2427.1,2427.0,0.82398]
[1750443290769,1.5012,2427.2,2427.0,0.82398]
[1750443290967,4.3645,2429.2,2427.5,3.2078]
[1750443291272,4.74429395,2429.2,2428.5,3.2078]
[1750443291462,4.74429395,2429.2,2428.7,0.8234]
[1750443291666,4.74429395,2429.2,2428.6,0.82344]
[1750443291861,4.74429395,2429.2,2428.7,0.82342]
[1750443292065,0.82334,2429.0,2428.7,0.82342]
[1750443292265,39.8113,2429.2,2428.7,0.8234]
[1750443292461,1.431,2428.9,2428.8,0.82339]
[1750443292670,1.431,2428.9,2428.5,3.2078]
[1750443292872,1.431,2428.9,2428.7,0.8234]
[1750443293071,1.431,2428.9,2428.8,0.82339]
[1750443293863,0.8233,2429.1,2428.8,3.2078]
[1750443294067,1.431,2429.0,2428.9,0.82334]
[1750443294263,2.25432,2429.0,2428.9,0.82334]
[1750443294464,1.431,2429.0,2428.9,0.82334]
[1750443295175,2.25432,2429.0,2428.8,4.03117]
[1750443295567,0.82336,2428.9,2428.8,4.03117]
[1750443295767,0.82336,2428.9,2428.7,0.8234]
[1750443296270,1.431,2429.0,2428.6,0.82344]
[1750443296576,0.8234,2428.8,2428.7,0.82342]
[1750443296776,0.82338,2428.9,2428.5,3.2078]
[1750443296978,0.8234,2428.8,2428.7,0.82341]
[1750443297177,0.82338,2428.9,2428.8,0.82339]
[1750443297578,0.82338,2428.9,2428.7,0.8234]
[1750443297779,0.82339,2428.8,2428.7,0.8234]
[1750443298077,0.82338,2428.9,2428.8,0.82339]
[1750443298279,0.82339,2428.8,2428.7,0.8234]
[1750443298479,2.19609,2428.8,2428.7,0.8234]
[1750443299180,1.3727,2428.8,2428.7,0.8234]
[1750443299376,2.19609,2428.8,2428.7,0.8234]
[1750443300278,0.82345,2428.7,2428.6,0.82344]
[1750443300678,0.82345,2428.7,2428.5,3.2078]
[1750443300679,2.19612,2428.8,2428.7,0.82342]
[1750443301081,1.3727,2428.8,2428.7,0.82342]
[1750443301374,0.82314,2429.6,2429.5,0.82312]
[1750443301581,3.2078,2429.7,2429.5,0.82312]
[1750443301582,3.2078,2429.7,2429.6,0.82312]
[1750443301785,2.755,2429.8,2429.7,0.82309]
[1750443301989,1.4553,2430.1,2430.0,0.82298]
[1750443302184,1.4022,2430.3,2429.8,11.12265799]
[1750443302379,1.4022,2430.3,2430.0,0.82296]
[1750443302583,3.51261,2430.2,2429.6,3.2078]
[1750443302783,8.155,2430.1,2429.6,3.2078]
[1750443303089,0.82297,2430.1,2430.0,0.82298]
[1750443303289,40.10931556,2430.3,2429.9,3.2078]
[1750443303492,0.82298,2430.0,2429.9,4.0308]
[1750443303886,0.82298,2430.0,2429.8,0.82303]
[1750443304296,0.82302,2429.9,2429.8,0.82303]
[1750443304994,0.82304,2429.9,2429.8,0.82305]
[1750443305294,0.82309,2429.7,2429.6,3.2078]
[1750443305489,0.82319,2429.4,2429.3,3.2078]
[1750443305694,0.82319,2429.4,2429.2,2.28004]
[1750443305695,0.82328,2429.2,2429.1,0.82327]
[1750443306194,0.82324,2429.3,2429.2,0.82323]
[1750443306393,0.82319,2429.4,2429.3,0.8232]
[1750443308495,0.82324,2429.3,2429.2,0.82323]
[1750443308889,0.82325,2429.2,2429.1,2.27667]
[1750443309294,0.82324,2429.3,2429.2,0.82323]
[1750443310297,0.82325,2429.2,2429.1,1.4534]
[1750443310499,3.2078,2429.2,2428.6,3.2078]
[1750443310795,2.05879,2428.5,2427.8,5.26711]
[1750443311097,3.2078,2428.4,2428.3,0.82356]
[1750443311396,3.2078,2428.4,2428.3,3.60636]
[1750443311794,4.03133,2428.4,2428.3,2.26016]
[1750443312098,33.95066,2428.4,2427.7,1.3224]
[1750443312298,0.82368,2428.0,2427.7,1.3224]
[1750443312598,0.82372,2427.9,2427.8,0.82372]
[1750443313004,3.2078,2428.1,2427.6,3.2078]
[1750443313290,0.82376,2427.7,2427.6,4.03157]
[1750443313687,0.82375,2427.8,2427.6,4.03157]
[1750443313895,0.82375,2427.8,2425.7,297.123]
[1750443313896,0.82381,2427.6,2427.4,0.82385]
[1750443314392,4.5349,2427.7,2427.3,0.82387]
[1750443314699,0.00411895,2427.8,2427.7,0.82376]
[1750443315600,0.00411895,2427.8,2427.6,0.82378]
[1750443315899,1.33121895,2427.8,2427.7,0.82376]
[1750443316102,0.00411895,2427.8,2427.7,0.82376]
[1750443316903,0.00411895,2427.8,2427.6,0.82378]
[1750443317099,2.17807895,2427.8,2427.6,0.82378]
[1750443317299,1.35431895,2427.8,2427.7,0.82376]
[1750443317893,1.35431895,2427.8,2427.6,0.82377]
[1750443317894,0.82376,2427.7,2427.6,0.82377]
[1750443318099,1.35431895,2427.8,2427.7,0.82376]
[1750443318299,2.17804895,2427.8,2427.7,0.82376]
[1750443318598,0.82377,2427.7,2427.6,0.82378]
[1750443318903,2.17804895,2427.8,2427.6,0.82377]
[1750443319403,11.12265799,2427.7,2426.8,3.2078]
[1750443319602,0.82408,2426.8,2426.5,2.7381]
[1750443319901,0.82405,2426.9,2426.7,0.82409]
[1750443320102,0.82406,2426.8,2426.6,0.82411]
[1750443320297,0.82406,2426.9,2426.7,0.82409]
[1750443320600,1.425,2426.9,2426.6,0.82411]
[1750443320801,0.82411,2426.7,2426.5,2.22385]
[1750443321000,0.82409,2426.8,2426.6,0.82413]
[1750443321403,0.82409,2426.8,2426.7,0.8241]
[1750443321605,1.425,2426.9,2426.6,2.06034]
[1750443321904,28.656,2427.1,2427.0,0.824]
[1750443322703,29.47996,2427.1,2427.0,0.824]
[1750443323003,0.82401,2427.0,2426.5,3.4601]
[1750443323205,2.19701,2427.0,2426.8,0.82403]
[1750443323504,1.373,2427.0,2426.9,0.82403]
[1750443324409,1.373,2427.0,2426.8,0.82404]
[1750443324604,2.19703,2427.0,2426.8,0.82404]
[1750443325105,1.373,2427.0,2426.9,0.82403]
[1750443325503,2.19699,2427.0,2426.5,3.46009]
[1750443325705,0.82403,2426.9,2426.8,0.82403]
[1750443325905,1.373,2427.0,2426.5,1.3997]
[1750443326099,0.82407,2426.8,2426.7,0.82407]
[1750443326299,0.8241,2426.7,2426.6,0.82411]
[1750443326497,4.03184,2426.9,2426.8,0.82406]
[1750443326702,40.75983,2426.9,2426.8,0.82406]
[1750443327607,39.9358,2426.9,2426.8,0.82406]
[1750443328003,40.75984,2426.9,2426.8,0.82406]
[1750443328204,42.17854,2426.9,2426.8,0.82406]
[1750443328407,3.2078,2427.2,2427.1,0.82396]
[1750443329206,28.633,2427.6,2427.5,0.82382]
[1750443330109,0.00411895,2427.8,2427.7,0.82376]
[1750443330307,28.63311895,2427.8,2427.6,0.82377]
[1750443330510,29.45684895,2427.8,2427.7,0.82376]
[1750443330810,29.45684895,2427.8,2427.4,4.5764]
[1750443331010,29.45684895,2427.8,2427.7,0.82376]
[1750443331309,0.82376,2427.7,2427.6,0.82377]
[1750443331614,0.8238,2427.6,2427.5,0.82381]
[1750443331813,0.82381,2427.6,2427.5,0.82382]
[1750443332213,1.3876,2427.7,2427.5,0.82382]
[1750443332214,1.3876,2427.7,2427.5,0.82381]
[1750443332416,2.21138,2427.7,2427.6,0.82379]
[1750443332615,1.3876,2427.7,2427.6,0.82379]
[1750443333109,0.00411895,2427.8,2427.7,0.82376]
[1750443335513,0.82783895,2427.8,2427.7,0.82376]
[1750443335817,3.21191895,2427.8,2427.2,3.44732]
[1750443336018,4.60691895,2427.8,2427.2,1.3875]
[1750443336217,4.60691895,2427.8,2427.2,3.44731]
[1750443336416,4.60691895,2427.8,2427.5,0.82381]
[1750443336613,0.82379,2427.6,2427.5,0.82381]
[1750443337121,0.82378,2427.7,2427.6,0.82379]
[1750443337419,6.66624895,2427.8,2427.2,4.84981]
[1750443337621,0.82382,2427.6,2427.5,0.8238]
[1750443338517,0.82379,2427.7,2427.6,0.82379]
[1750443339723,3.21191895,2427.8,2427.7,0.82376]
[1750443340222,0.00411895,2427.8,2427.7,0.82376]
[1750443340611,0.82783895,2427.8,2427.7,0.82376]
[1750443340816,0.00411895,2427.8,2427.7,0.82376]
[1750443341818,1e-08,2427.8,2427.7,16.48481799]
[1750443342022,1e-08,2427.8,2427.7,29.51081799]
[1750443344219,3.2078,2429.1,2428.3,4.11765]
[1750443344423,0.82328,2429.1,2428.6,2.05863]
[1750443344717,1.3852,2429.2,2429.1,0.82328]
[1750443344923,1.3852,2429.2,2428.8,3.2078]
[1750443345124,2.20847,2429.2,2428.8,3.2078]
[1750443345423,3.61427,2429.2,2429.0,0.8233]
[1750443345719,0.82343,2428.7,2428.4,2.7534]
[1750443345926,0.82343,2428.7,2428.5,0.82347]
[1750443346113,0.82342,2428.7,2428.5,0.82347]
[1750443346425,0.82342,2428.7,2428.5,0.82346]
[1750443346614,0.82345,2428.6,2428.5,0.82346]
[1750443347010,4.03124,2428.7,2428.5,0.82346]
[1750443347215,4.03124,2428.7,2428.2,1.3686]
[1750443347414,3.2078,2428.7,2428.1,5.9612]
[1750443347615,3.2078,2428.7,2428.1,8.02023]
[1750443347815,0.82348,2428.6,2428.4,0.82349]
[1750443348117,0.82348,2428.5,2428.4,0.82349]
[1750443348317,0.82352,2428.4,2428.3,0.82352]
[1750443348623,0.82354,2428.3,2428.2,0.82356]
[1750443348826,0.82357,2428.2,2428.1,2.7534]
[1750443349323,0.82357,2428.2,2428.1,3.57701]
[1750443349515,0.82357,2428.2,2428.1,2.7534]
[1750443350229,0.82352,2428.4,2428.3,0.82354]
[1750443350621,0.82349,2428.5,2428.4,0.82349]
[1750443351023,3.2078,2428.7,2428.3,0.82351]
[1750443351024,0.82352,2428.4,2428.3,0.82351]
[1750443351821,0.82354,2428.3,2428.2,2.25105]
[1750443352124,2.05862,2428.6,2427.8,10.08322]
[1750443352125,13.18142799,2428.4,2427.8,4.03148]
[1750443352329,0.82366,2428.0,2427.9,0.82364]
[1750443353121,0.82366,2428.0,2427.7,3.2078]
[1750443353122,0.8237,2427.9,2427.8,0.82368]
[1750443353320,0.82374,2427.8,2427.7,0.82372]
[1750443353526,0.82374,2427.7,2427.6,3.65565]
[1750443353718,0.82373,2427.8,2427.7,0.82371]
[1750443356527,0.8237,2427.9,2427.8,0.82367]
[1750443357929,0.82377,2427.6,2427.5,2.13546]
[1750443358119,3.2078,2428.0,2427.5,1.3117]
[1750443358424,4.5169,2428.0,2427.4,6.70097]
[1750443358729,0.82377,2427.7,2427.6,0.82375]
[1750443359328,0.82381,2427.6,2427.5,0.82378]
[1750443359534,0.8239,2427.3,2427.2,0.82388]
[1750443360725,0.82396,2427.2,2427.1,0.82392]
[1750443361724,1.408,2427.5,2427.1,3.2078]
[1750443361932,0.82384,2427.5,2427.4,0.82382]
[1750443362623,1.4263,2427.6,2427.2,2.05977]
[1750443362822,0.82374,2427.8,2427.7,0.82371]
[1750443363026,3.2078,2427.9,2427.8,0.82371]
[1750443363027,4.0315,2427.9,2427.8,0.82371]
[1750443363225,0.82375,2427.8,2427.7,0.82372]
[1750443364230,0.82375,2427.7,2427.6,0.82375]
[1750443364631,3.2078,2427.9,2427.8,0.82371]
[1750443364833,4.03147,2427.9,2427.8,0.82371]
[1750443365138,0.82373,2427.8,2427.7,0.82371]
[1750443366131,0.82381,2427.5,2427.4,1.3554]
[1750443366529,0.82381,2427.5,2427.4,2.17924]
[1750443366839,4.0316,2427.6,2427.5,0.82381]
[1750443367035,0.82377,2427.7,2427.6,0.82377]
[1750443368639,1.3602,2427.8,2427.7,0.82374]
[1750443368839,4.03149,2427.9,2427.8,0.82371]
[1750443369330,3.2078,2428.2,2428.1,0.82361]
[1750443369531,2.05852,2428.7,2428.2,0.82357]
[1750443369532,0.82357,2428.3,2428.2,0.82357]
[1750443369733,0.82353,2428.4,2428.3,0.82351]
[1750443370135,0.82351,2428.5,2428.4,0.82347]
[1750443370732,0.82354,2428.4,2428.3,0.82352]
[1750443370932,0.82357,2428.3,2428.2,0.82355]
[1750443371339,3.2078,2428.6,2428.1,2.7649]
[1750443371340,0.82353,2428.4,2428.3,0.8235]
[1750443371633,0.82353,2428.4,2428.2,3.2078]
[1750443371839,0.82353,2428.4,2428.3,0.8235]
[1750443372237,0.8235,2428.5,2428.4,0.82348]
[1750443372934,0.82354,2428.4,2428.3,0.82351]
[1750443373638,0.8235,2428.5,2428.4,0.82347]
[1750443375135,3.2078,2428.9,2428.3,2.05886]
[1750443375341,3.2078,2428.9,2428.2,3.2078]
[1750443375342,0.82349,2428.5,2428.4,0.82348]
[1750443376142,1.3452,2428.8,2428.2,3.2078]
[1750443376335,1.3452,2428.8,2428.5,0.82345]
[1750443376336,0.82348,2428.6,2428.5,0.82345]
[1750443377742,0.8234,2428.8,2428.7,0.82337]
[1750443377948,0.82344,2428.7,2428.6,0.82341]
[1750443379242,5.26616,2428.9,2428.7,0.82337]
[1750443379243,0.82341,2428.8,2428.7,0.82337]